fUSD/lending_fUSD_20250305
["ID","MTS","AMOUNT","RATE_DAILY","PERIOD"]
[355492188,1741204242027,-187.888583,0.00010987,2]
[355492190,1741204242037,-888.01,0.00010987,2]
[355492192,1741204242047,-500.0,0.00010987,2]
[355492194,1741204242056,-773.49,0.00010987,2]
[355492196,1741204242066,-161.85124556,0.00010987,2]
[355492198,1741204242075,-500.0,0.00010987,2]
[355492200,1741204242084,-1129.85,0.00010987,2]
[355492202,1741204242094,-500.0,0.00010987,2]
[355492205,1741204242103,-500.0,0.00010987,2]
[355492207,1741204242113,-500.0,0.00010987,2]
[355492209,1741204242122,-500.0,0.00010987,2]
[355492211,1741204242130,-1153.95,0.00010987,2]
[355492213,1741204242139,-500.0,0.00010987,2]
[355492215,1741204242150,-1078.38,0.00010987,2]
[355492217,1741204242160,-500.0,0.00010987,2]
[355492219,1741204242169,-572.49,0.00010987,2]
[355492221,1741204242177,-500.0,0.00010987,2]
[355492223,1741204242185,-500.0,0.00010988,2]
[355492225,1741204242194,-500.0,0.00010988,2]
[355492227,1741204242204,-500.0,0.00010988,2]
[355492229,1741204242214,-500.0,0.00010988,2]
[355492231,1741204242223,-500.0,0.00010988,2]
[355492233,1741204242232,-500.0,0.00010988,2]
[355492235,1741204242241,-515.84191771,0.00010988,2]
[355492236,1741204242251,-500.0,0.00010988,2]
[355492237,1741204242260,-500.0,0.00010988,2]
[355492238,1741204242269,-500.0,0.00010988,2]
[355492239,1741204242278,-502.73586097,0.00010988,2]
[355492240,1741204242287,-500.0,0.00010988,2]
[355492241,1741204242296,-500.0,0.00010988,2]
[355492242,1741204242305,-500.0,0.00010988,2]
[355492243,1741204242315,-500.0,0.00010988,2]
[355492244,1741204242325,-500.0,0.00010988,2]
[355492245,1741204242334,-500.0,0.00010988,2]
[355492246,1741204242343,-500.0,0.00010988,2]
[355492247,1741204242352,-500.0,0.00010988,2]
[355492248,1741204242361,-500.0,0.00010988,2]
[355492250,1741204242371,-500.0,0.00010988,2]
[355492252,1741204242380,-500.0,0.00010988,2]
[355492254,1741204242389,-500.0,0.00010988,2]
[355492256,1741204242399,-500.0,0.00010988,2]
[355492258,1741204242409,-500.0,0.00010988,2]
[355492260,1741204242419,-500.0,0.00010988,2]
[355492262,1741204242428,-500.0,0.00010988,2]
[355492264,1741204242437,-500.0,0.00010988,2]
[355492265,1741204242447,-500.0,0.00010988,2]
[355492267,1741204242456,-500.0,0.00010988,2]
[355492269,1741204242465,-500.0,0.00010988,2]
[355492271,1741204242475,-500.0,0.00010988,2]
[355492273,1741204242484,-500.0,0.00010988,2]
[355492275,1741204242494,-500.0,0.00010988,2]
[355492277,1741204242503,-500.0,0.00010988,2]
[355492279,1741204242512,-500.0,0.00010988,2]
[355492281,1741204242524,-500.0,0.00010988,2]
[355492283,1741204242534,-507.87272656,0.00010988,2]
[355492285,1741204242544,-500.0,0.00010988,2]
[355492287,1741204242554,-270.11623349,0.00010988,2]
[355492289,1741204242564,-600.65297947,0.00010988,2]
[355492291,1741204242574,-500.0,0.00010988,2]
[355492293,1741204242583,-500.0,0.00010988,2]
[355492295,1741204242593,-500.0,0.00010988,2]
[355492297,1741204242603,-500.0,0.00010988,2]
[355492299,1741204242614,-500.0,0.00010988,2]
[355492301,1741204242623,-500.0,0.00010988,2]
[355492303,1741204242633,-500.0,0.00010988,2]
[355492305,1741204242642,-500.0,0.00010988,2]
[355492307,1741204242651,-500.0,0.00010988,2]
[355492310,1741204242663,-500.0,0.00010988,2]
[355492311,1741204242672,-500.0,0.00010988,2]
[355492313,1741204242681,-500.0,0.00010988,2]
[355492316,1741204242691,-500.0,0.00010988,2]
[355492318,1741204242700,-500.0,0.00010988,2]
[355492319,1741204242709,-500.0,0.00010988,2]
[355492322,1741204242719,-500.0,0.00010988,2]
[355492324,1741204242728,-500.0,0.00010988,2]
[355492325,1741204242737,-500.0,0.00010988,2]
[355492327,1741204242747,-500.0,0.00010988,2]
[355492329,1741204242759,-500.0,0.00010988,2]
[355492331,1741204242768,-500.0,0.00010988,2]
[355492333,1741204242778,-500.0,0.00010988,2]
[355492335,1741204242787,-500.0,0.00010988,2]
[355492337,1741204242796,-500.0,0.00010988,2]
[355492339,1741204242806,-601.17,0.00010988,2]
[355492341,1741204242815,-500.0,0.00010988,2]
[355492344,1741204242825,-500.0,0.00010988,2]
[355492345,1741204242834,-500.0,0.00010988,2]
[355492348,1741204242845,-500.0,0.00010988,2]
[355492350,1741204242856,-500.0,0.00010988,2]
[355492353,1741204242865,-500.0,0.00010988,2]
[355492355,1741204242875,-500.0,0.00010988,2]
[355492357,1741204242884,-500.0,0.00010988,2]
[355492358,1741204242893,-502.83799176,0.00010988,2]
[355492361,1741204242902,-500.0,0.00010988,2]
[355492364,1741204242913,-500.0,0.00010988,2]
[355492369,1741204242923,-500.0,0.00010988,2]
[355492371,1741204242932,-502.98779336,0.00010988,2]
[355492374,1741204242942,-500.0,0.00010988,2]
[355492378,1741204242951,-330.77517699,0.00010988,2]
[355492380,1741204242960,-500.0,0.00010988,2]
[355492383,1741204242970,-500.0,0.00010988,2]
[355492386,1741204242979,-500.0,0.00010988,2]
[355492388,1741204242989,-500.0,0.00010988,2]
[355492392,1741204242998,-500.0,0.00010988,2]
[355492396,1741204243010,-500.0,0.00010988,2]
[355492399,1741204243019,-500.0,0.00010988,2]
[355492402,1741204243029,-509.27197556,0.00010988,2]
[355492405,1741204243038,-500.0,0.00010988,2]
[355492408,1741204243047,-500.0,0.00010988,2]
[355492411,1741204243056,-500.0,0.00010988,2]
[355492414,1741204243067,-500.0,0.00010988,2]
[355492416,1741204243076,-552.86,0.00010988,2]
[355492418,1741204243085,-500.0,0.00010988,2]
[355492421,1741204243095,-500.0,0.00010988,2]
[355492423,1741204243105,-500.0,0.00010988,2]
[355492425,1741204243115,-500.0,0.00010988,2]
[355492427,1741204243125,-500.0,0.00010988,2]
[355492429,1741204243134,-500.0,0.00010988,2]
[355492431,1741204243148,-566.28,0.00010988,2]
[355492433,1741204243158,-500.0,0.00010988,2]
[355492435,1741204243167,-500.0,0.00010988,2]
[355492438,1741204243177,-500.0,0.00010988,2]
[355492440,1741204243186,-500.0,0.00010988,2]
[355492442,1741204243195,-500.0,0.00010988,2]
[355492444,1741204243207,-507.05547724,0.00010988,2]
[355492446,1741204243216,-500.0,0.00010988,2]
[355492448,1741204243224,-500.0,0.00010988,2]
[355492450,1741204243234,-500.0,0.00010988,2]
[355492473,1741204243243,-500.0,0.00010988,2]
[355492476,1741204243451,-500.0,0.00010988,2]
[355492478,1741204243461,-500.0,0.00010988,2]
[355492480,1741204243471,-500.23473192,0.00010988,2]
[355492482,1741204243480,-500.0,0.00010988,2]
[355492484,1741204243490,-500.0,0.00010988,2]
[355492486,1741204243500,-500.0,0.00010988,2]
[355492488,1741204243509,-500.0,0.00010988,2]
[355492490,1741204243519,-500.0,0.00010988,2]
[355492492,1741204243533,-500.0,0.00010988,2]
[355492494,1741204243543,-500.0,0.00010988,2]
[355492496,1741204243553,-504.44085702,0.00010988,2]
[355492498,1741204243562,-500.0,0.00010988,2]
[355492500,1741204243572,-558.13123252,0.00010988,2]
[355492502,1741204243581,-500.0,0.00010988,2]
[355492504,1741204243590,-500.0,0.00010988,2]
[355492506,1741204243600,-255.94629301,0.00010988,2]
[355492508,1741204243610,-500.0,0.00010988,2]
[355492510,1741204243620,-500.0,0.00010988,2]
[355492512,1741204243629,-500.0,0.00010988,2]
[355492514,1741204243639,-500.0,0.00010988,2]
[355492516,1741204243648,-500.0,0.00010988,2]
[355492518,1741204243658,-502.329198,0.00010988,2]
[355492520,1741204243667,-500.0,0.00010988,2]
[355492522,1741204243677,-500.0,0.00010988,2]
[355492524,1741204243686,-500.0,0.00010988,2]
[355492526,1741204243697,-500.0,0.00010988,2]
[355492528,1741204243706,-500.0,0.00010988,2]
[355492530,1741204243716,-529.04128208,0.00010988,2]
[355492532,1741204243725,-500.87929708,0.00010988,2]
[355492534,1741204243735,-236.11443171,0.00010988,2]
[355492537,1741204243744,-500.0,0.00010988,2]
[355492539,1741204243755,-500.0,0.00010988,2]
[355492541,1741204243765,-500.0,0.00010988,2]
[355492543,1741204243774,-500.0,0.00010988,2]
[355492545,1741204243783,-500.0,0.00010988,2]
[355492547,1741204243793,-500.0,0.00010988,2]
[355492549,1741204243802,-500.0,0.00010988,2]
[355492551,1741204243812,-500.0,0.00010988,2]
[355492553,1741204243822,-500.0,0.00010988,2]
[355492555,1741204243831,-503.63794452,0.00010988,2]
[355492556,1741204243840,-500.0,0.00010988,2]
[355492558,1741204243849,-500.0,0.00010988,2]
[355492560,1741204243859,-500.0,0.00010988,2]
[355492563,1741204243868,-500.0,0.00010988,2]
[355492565,1741204243878,-500.0,0.00010988,2]
[355492567,1741204243887,-500.0,0.00010988,2]
[355492569,1741204243896,-501.82886592,0.00010988,2]
[355492571,1741204243907,-500.0,0.00010988,2]
[355492573,1741204243917,-500.0,0.00010988,2]
[355492575,1741204243926,-500.0,0.00010988,2]
[355492577,1741204243935,-504.41400826,0.00010988,2]
[355492579,1741204243944,-1060.36,0.00010988,2]
[355492581,1741204243953,-500.0,0.00010988,2]
[355492583,1741204243962,-500.0,0.00010988,2]
[355492585,1741204243972,-500.0,0.00010988,2]
[355492587,1741204243981,-500.0,0.00010988,2]
[355492589,1741204243990,-549.95,0.00010988,2]
[355492591,1741204244000,-500.0,0.00010988,2]
[355492593,1741204244009,-500.0,0.00010988,2]
[355492595,1741204244019,-500.0,0.00010988,2]
[355492597,1741204244028,-500.0,0.00010988,2]
[355492599,1741204244038,-500.0,0.00010988,2]
[355492601,1741204244048,-523.05273515,0.00010988,2]
[355492603,1741204244057,-500.0,0.00010988,2]
[355492605,1741204244066,-511.99,0.00010988,2]
[355492607,1741204244076,-536.44926698,0.00010988,2]
[355492609,1741204244086,-611.93,0.00010988,2]
[355492611,1741204244095,-492.46755087,0.00010988,2]
[355492613,1741204244104,-500.0,0.00010988,2]
[355492615,1741204244113,-500.0,0.00010988,2]
[355492617,1741204244122,-279.14124945,0.00010988,2]
[355492619,1741204244131,-500.0,0.00010988,2]
[355492621,1741204244140,-500.0,0.00010988,2]
[355492623,1741204244149,-500.0,0.00010988,2]
[355492625,1741204244160,-646.97,0.00010988,2]
[355492627,1741204244169,-500.0,0.00010988,2]
[355492629,1741204244179,-500.0,0.00010988,2]
[355492631,1741204244188,-500.0,0.00010988,2]
[355492633,1741204244197,-500.0,0.00010988,2]
[355492635,1741204244206,-500.0,0.00010988,2]
[355492637,1741204244217,-500.0,0.00010988,2]
[355492639,1741204244226,-508.15520268,0.00010988,2]
[355492641,1741204244235,-500.0,0.00010988,2]
[355492643,1741204244245,-500.0,0.00010988,2]
[355492645,1741204244254,-594.01,0.00010988,2]
[355492647,1741204244263,-500.0,0.00010988,2]
[355492649,1741204244272,-500.0,0.00010988,2]
[355492651,1741204244282,-500.0,0.00010988,2]
[355492653,1741204244292,-500.0,0.00010988,2]
[355492655,1741204244303,-500.0,0.00010988,2]
[355492657,1741204244313,-870.26,0.00010988,2]
[355492659,1741204244323,-500.0,0.00010988,2]
[355492661,1741204244332,-500.0,0.00010988,2]
[355492663,1741204244341,-500.0,0.00010988,2]
[355492665,1741204244350,-651.12,0.00010988,2]
[355492667,1741204244360,-500.0,0.00010988,2]
[355492669,1741204244369,-500.0,0.00010988,2]
[355492671,1741204244378,-500.0,0.00010988,2]
[355492673,1741204244387,-500.0,0.00010988,2]
[355492675,1741204244396,-500.0,0.00010988,2]
[355492677,1741204244406,-500.0,0.00010988,2]
[355492679,1741204244415,-500.0,0.00010988,2]
[355492681,1741204244424,-500.0,0.00010988,2]
[355492683,1741204244433,-760.12,0.00010988,2]
[355492685,1741204244443,-500.0,0.00010988,2]
[355492687,1741204244452,-605.66900272,0.00010988,2]
[355492689,1741204244462,-500.0,0.00010988,2]
[355492691,1741204244471,-500.0,0.00010988,2]
[355492692,1741204244483,-1309.68,0.00010988,2]
[355492695,1741204244500,-500.0,0.00010988,2]
[355492697,1741204244510,-500.0,0.00010988,2]
[355492699,1741204244519,-500.0,0.00010988,2]
[355492701,1741204244528,-501.01329024,0.00010988,2]
[355492703,1741204244542,-905.35,0.00010988,2]
[355492705,1741204244551,-500.0,0.00010988,2]
[355492707,1741204244560,-500.0,0.00010988,2]
[355492709,1741204244570,-500.0,0.00010988,2]
[355492711,1741204244581,-500.0,0.00010988,2]
[355492713,1741204244590,-500.0,0.00010988,2]
[355492715,1741204244599,-500.0,0.00010988,2]
[355492717,1741204244609,-500.0,0.00010988,2]
[355492719,1741204244619,-500.0,0.00010988,2]
[355492721,1741204244629,-645.63,0.00010988,2]
[355492723,1741204244638,-881.82,0.00010988,2]
[355492725,1741204244648,-500.0,0.00010988,2]
[355492727,1741204244658,-500.0,0.00010988,2]
[355492729,1741204244667,-728.28,0.00010988,2]
[355492731,1741204244676,-524.4,0.00010988,2]
[355492733,1741204244687,-500.0,0.00010988,2]
[355492735,1741204244696,-500.0,0.00010988,2]
[355492737,1741204244705,-810.05,0.00010988,2]
[355492739,1741204244715,-500.0,0.00010988,2]
[355492741,1741204244724,-403.6817409,0.00010988,2]
[355492743,1741204244733,-858.58,0.00010988,2]
[355492745,1741204244742,-975.2,0.00010988,2]
[355492747,1741204244751,-500.0,0.00010988,2]
[355492749,1741204244760,-500.0,0.00010988,2]
[355492751,1741204244770,-500.0,0.00010988,2]
[355492753,1741204244780,-662.88,0.00010988,2]
[355492755,1741204244789,-500.0,0.00010988,7]
[355492756,1741204244799,-521.78,0.00010988,2]
[355492758,1741204244808,-500.0,0.00010988,2]
[355492761,1741204244818,-725.69,0.00010988,2]
[355492762,1741204244827,-500.0,0.00010988,2]
[355492765,1741204244837,-515.66934798,0.00010988,2]
[355492767,1741204244847,-500.0,0.00010988,2]
[355492769,1741204244857,-500.0,0.00010988,2]
[355492771,1741204244866,-500.0,0.00010988,2]
[355492772,1741204244875,-854.34,0.00010988,2]
[355492775,1741204244886,-500.0,0.00010988,2]
[355492777,1741204244895,-500.0,0.00010988,2]
[355492779,1741204244906,-520.16,0.00010988,2]
[355492781,1741204244916,-711.45,0.00010988,2]
[355492783,1741204244925,-500.0,0.00010988,2]
[355492785,1741204244935,-500.0,0.00010988,2]
[355492787,1741204244944,-500.0,0.00010988,2]
[355492789,1741204244954,-500.0,0.00010988,2]
[355492791,1741204244963,-624.12,0.00010988,2]
[355492793,1741204244973,-500.0,0.00010988,2]
[355492795,1741204244982,-500.0,0.00010988,2]
[355492797,1741204244991,-1091.72,0.00010988,2]
[355492799,1741204245001,-500.0,0.00010988,2]
[355492801,1741204245010,-500.98806004,0.00010988,2]
[355492803,1741204245019,-500.0,0.00010988,2]
[355492805,1741204245028,-668.1,0.00010988,2]
[355492807,1741204245037,-839.04,0.00010988,2]
[355492809,1741204245047,-500.0,0.00010988,2]
[355492811,1741204245056,-500.0,0.00010988,2]
[355492813,1741204245066,-500.0,0.00010988,2]
[355492815,1741204245076,-1438.56,0.00010988,2]
[355492817,1741204245085,-500.0,0.00010988,2]
[355492819,1741204245094,-500.0,0.00010988,2]
[355492821,1741204245103,-500.0,0.00010988,2]
[355492823,1741204245113,-500.0,0.00010988,2]
[355492825,1741204245122,-500.0,0.00010988,2]
[355492827,1741204245132,-500.0,0.00010988,2]
[355492829,1741204245142,-500.0,0.00010988,2]
[355492831,1741204245151,-505.81668276,0.00010988,2]
[355492833,1741204245162,-693.95,0.00010988,2]
[355492835,1741204245171,-500.0,0.00010988,2]
[355492837,1741204245181,-523.33,0.00010988,2]
[355492839,1741204245191,-561.21,0.00010988,2]
[355492841,1741204245201,-560.95,0.00010988,2]
[355492843,1741204245210,-500.0,0.00010988,2]
[355492845,1741204245220,-1501.51,0.00010988,2]
[355492847,1741204245230,-464.50325136,0.00010988,2]
[355492849,1741204245240,-737.71,0.00010988,2]
[355492851,1741204245249,-706.36,0.00010988,2]
[355492853,1741204245258,-500.0,0.00010988,2]
[355492855,1741204245267,-500.0,0.00010988,2]
[355492857,1741204245276,-943.37,0.00010988,2]
[355492858,1741204245285,-500.0,0.00010988,2]
[355492859,1741204245295,-500.0,0.00010988,2]
[355492860,1741204245304,-800.25,0.00010988,2]
[355492861,1741204245313,-500.0,0.00010988,2]
[355492862,1741204245322,-500.0,0.00010988,2]
[355492863,1741204245331,-500.0,0.00010988,2]
[355492864,1741204245339,-500.0,0.00010988,2]
[355492865,1741204245348,-1346.62,0.00010988,2]
[355492866,1741204245357,-505.48,0.00010988,2]
[355492867,1741204245367,-449.78996127,0.00010988,2]
[355492868,1741204245376,-390.25100261,0.00010988,2]
[355492869,1741204245385,-500.0,0.00010988,2]
[355492870,1741204245394,-500.0,0.00010988,2]
[355492872,1741204245404,-1041.0,0.00010988,2]
[355492874,1741204245415,-1151.1,0.00010988,2]
[355492876,1741204245424,-500.0,0.00010988,2]
[355492878,1741204245433,-500.0,0.00010988,2]
[355492880,1741204245443,-500.0,0.00010988,2]
[355492882,1741204245452,-843.15,0.00010988,2]
[355492884,1741204245461,-500.0,0.00010988,2]
[355492886,1741204245470,-500.0,0.00010988,2]
[355492888,1741204245480,-500.0,0.00010988,2]
[355492890,1741204245489,-500.0,0.00010988,2]
[355492892,1741204245499,-780.02,0.00010988,2]
[355492894,1741204245508,-796.7,0.00010988,2]
[355492896,1741204245518,-500.0,0.00010988,2]
[355492898,1741204245531,-814.33,0.00010988,2]
[355492900,1741204245540,-500.0,0.00010988,2]
[355492902,1741204245550,-525.12,0.00010988,2]
[355492904,1741204245559,-926.97,0.00010988,2]
[355492906,1741204245570,-500.0,0.00010988,2]
[355492908,1741204245579,-1178.87,0.00010988,2]
[355492910,1741204245588,-500.0,0.00010988,2]
[355492912,1741204245598,-913.08,0.00010988,2]
[355492914,1741204245607,-500.0,0.00010988,2]
[355492916,1741204245617,-500.0,0.00010988,2]
[355492918,1741204245627,-500.0,0.00010988,2]
[355492920,1741204245636,-645.88,0.00010988,2]
[355492922,1741204245645,-1105.26,0.00010988,2]
[355492924,1741204245655,-694.7,0.00010988,2]
[355492927,1741204245665,-509.09029441,0.00010988,2]
[355492929,1741204245674,-527.05,0.00010988,2]
[355492931,1741204245684,-526.85,0.00010988,2]
[355492933,1741204245694,-500.0,0.00010988,2]
[355492935,1741204245704,-500.0,0.00010988,2]
[355492937,1741204245713,-500.0,0.00010988,2]
[355492939,1741204245722,-627.59,0.00010988,2]
[355492947,1741204245792,-500.0,0.00010988,2]
[355492949,1741204245802,-500.0,0.00010988,2]
[355492951,1741204245812,-500.0,0.00010988,2]
[355492953,1741204245820,-500.0,0.00010988,2]
[355492955,1741204245830,-500.0,0.00010988,2]
[355492958,1741204245839,-911.12,0.00010988,2]
[355492960,1741204245848,-500.0,0.00010988,2]
[355492962,1741204245857,-500.0,0.00010988,2]
[355492964,1741204245867,-500.0,0.00010988,2]
[355492966,1741204245876,-719.51,0.00010988,2]
[355492968,1741204245885,-648.31,0.00010988,2]
[355492970,1741204245895,-547.36,0.00010988,2]
[355492972,1741204245904,-500.0,0.00010988,2]
[355492974,1741204245914,-980.67,0.00010988,2]
[355492976,1741204245923,-229.58011779,0.00010988,2]
[355492978,1741204245934,-826.87,0.00010988,2]
[355492980,1741204245943,-500.0,0.00010988,2]
[355492982,1741204245952,-500.0,0.00010988,2]
[355492984,1741204245961,-681.81,0.00010988,2]
[355492986,1741204245971,-804.62,0.00010988,2]
[355492988,1741204245980,-806.64,0.00010988,2]
[355492990,1741204245990,-1045.28,0.00010988,2]
[355492992,1741204246000,-1047.97,0.00010989,2]
[355492994,1741204246010,-1050.67,0.00010989,2]
[355492996,1741204246019,-1338.0,0.00010989,2]
[355492998,1741204246029,-1552.28,0.00010989,2]
[355493000,1741204246039,-3232.2,0.00010989,2]
[355493002,1741204246048,-2657.97,0.00010989,2]
[355493005,1741204246058,-16628.75,0.00010989,2]
[355493007,1741204246067,-1389.35,0.00010989,2]
[355493009,1741204246076,-16865.6,0.00010989,2]
[355493011,1741204246085,-2021.26,0.00010989,2]
[355493013,1741204246094,-626.3,0.00010989,2]
[355493015,1741204246104,-1496.23,0.00010989,2]
[355493017,1741204246113,-3311.5,0.00010989,2]
[355493019,1741204246122,-1139.34,0.00010989,2]
[355493021,1741204246132,-500.0,0.00010989,2]
[355493023,1741204246142,-500.0,0.00010989,2]
[355493025,1741204246152,-2435.61,0.00010989,2]
[355493027,1741204246162,-2111.13,0.00010989,2]
[355493029,1741204246171,-459.50224267,0.00010989,2]
[355493031,1741204246181,-1324.34,0.00010989,2]
[355493033,1741204246190,-151.0,0.00010989,2]
[355493035,1741204246199,-609.65,0.00010989,2]
[355493037,1741204246208,-500.0,0.0001099,2]
[355493039,1741204246217,-500.0,0.0001099,2]
[355493041,1741204246227,-535.27,0.0001099,2]
[355493043,1741204246236,-500.0,0.0001099,2]
[355493046,1741204246246,-517.73,0.0001099,2]
[355493048,1741204246255,-500.0,0.0001099,2]
[355493050,1741204246264,-620.62,0.00011013,2]
[355493051,1741204246274,-164.7341625,0.00011038,2]
[355493053,1741204246283,-620.62,0.00011057,2]
[355493055,1741204246292,-5910.1856006,0.00011099,2]
[355493057,1741204246302,-5910.18560056,0.00011099,2]
[355493060,1741204246312,-151.0,0.00011099,2]
[355493062,1741204246322,-1507.0,0.000111,2]
[355493064,1741204246332,-451.34157484,0.000111,2]
[355493066,1741204246342,-451.34157473,0.000111,2]
[355493068,1741204246351,-451.34157473,0.000111,2]
[355493070,1741204246360,-620.62,0.00011101,2]
[355493072,1741204246369,-451.34157473,0.00011107,2]
[355493074,1741204246379,-500.0,0.00011137,2]
[355493076,1741204246388,-500.0,0.00011137,2]
[355493078,1741204246398,-620.62,0.00011144,2]
[355493080,1741204246408,-159.53658,0.0001115,2]
[355493082,1741204246418,-297.4374,0.00011162,2]
[355493083,1741204246427,-451.34157473,0.00011176,2]
[355493085,1741204246435,-620.62,0.00011188,2]
[355493087,1741204246445,-1930.386,0.000112,2]
[355493089,1741204246454,-625.95,0.00011215,2]
[355493091,1741204246463,-4000.0,0.00011242,2]
[355493093,1741204246472,-451.34157473,0.00011245,2]
[355493095,1741204246481,-7643.8955609,0.00011259,2]
[355493097,1741204246490,-3068.8296809,0.00011259,2]
[355493099,1741204246499,-13066.03853354,0.0001126,2]
[355493101,1741204246509,-500.0,0.0001126,2]
[355493103,1741204246518,-769.2,0.0001126,2]
[355493105,1741204246527,-815.25,0.0001126,2]
[355493107,1741204246540,-500.0,0.00011261,2]
[355493109,1741204246549,-278.58334002,0.00011261,2]
[355493111,1741204246558,-500.0,0.00011261,2]
[355493113,1741204246567,-520.4,0.00011261,2]
[355493115,1741204246578,-500.0,0.00011261,2]
[355493117,1741204246587,-557.27,0.00011261,2]
[355493119,1741204246596,-500.0,0.00011261,2]
[355493121,1741204246606,-604.69,0.00011261,2]
[355493123,1741204246615,-500.0,0.00011261,2]
[355493125,1741204246625,-724.15,0.00011261,2]
[355493127,1741204246633,-500.0,0.00011261,2]
[355493129,1741204246642,-500.0,0.00011261,2]
[355493131,1741204246651,-500.0,0.00011261,2]
[355493133,1741204246661,-500.0,0.00011261,2]
[355493135,1741204246670,-500.0,0.00011261,2]
[355493137,1741204246679,-550.59,0.00011261,2]
[355493139,1741204246687,-500.0,0.00011261,2]
[355493141,1741204246696,-500.0,0.00011261,2]
[355493143,1741204246705,-500.0,0.00011261,2]
[355493145,1741204246714,-500.0,0.00011261,2]
[355493146,1741204246723,-500.0,0.00011261,2]
[355493148,1741204246732,-500.0,0.00011261,2]
[355493150,1741204246741,-671.5,0.00011261,2]
[355493152,1741204246750,-500.0,0.00011261,2]
[355493154,1741204246759,-500.0,0.00011261,2]
[355493156,1741204246769,-639.14,0.00011261,2]
[355493157,1741204246780,-500.0,0.00011261,2]
[355493159,1741204246790,-1003.707596,0.00011261,2]
[355493161,1741204246799,-637.96,0.00011261,2]
[355493163,1741204246808,-500.0,0.00011261,2]
[355493164,1741204246817,-500.0,0.00011261,2]
[355493166,1741204246826,-500.0,0.00011261,2]
[355493168,1741204246834,-756.999678,0.00011261,2]
[355493170,1741204246843,-500.0,0.00011261,2]
[355493171,1741204246853,-387.25,0.00011261,2]
[355493173,1741204246862,-500.0,0.00011261,2]
[355493175,1741204246871,-500.0,0.00011261,2]
[355493176,1741204246880,-1152.59,0.00011261,2]
[355493178,1741204246889,-647.81,0.00011261,2]
[355493180,1741204246898,-500.0,0.00011261,2]
[355493182,1741204246907,-500.0,0.00011261,2]
[355493183,1741204246916,-843.07,0.00011261,2]
[355493185,1741204246926,-617.9,0.00011261,2]
[355493187,1741204246935,-500.0,0.00011261,2]
[355493189,1741204246944,-500.0,0.00011261,2]
[355493191,1741204246953,-500.0,0.00011261,2]
[355493192,1741204246962,-500.0,0.00011261,2]
[355493194,1741204246972,-500.0,0.00011261,2]
[355493196,1741204246981,-657.93,0.00011261,2]
[355493198,1741204246991,-500.0,0.00011261,2]
[355493199,1741204247000,-850.28,0.00011261,2]
[355493201,1741204247009,-500.0,0.00011261,2]
[355493203,1741204247019,-668.59,0.00011261,2]
[355493205,1741204247029,-500.0,0.00011261,2]
[355493207,1741204247038,-500.0,0.00011261,2]